bitfinex/quotes_BTCUSD_20250825
["timestamp","ask_amount","ask_price","bid_price","bid_amount"]
[1756084934479,0.9213134,113120.0,113110.0,0.57267853]
[1756084934926,0.90747589,113120.0,113110.0,0.57267853]
[1756084935556,0.02619866,113120.0,113110.0,0.57267853]
[1756084936800,0.90747589,113120.0,113110.0,0.57267853]
[1756084936923,0.02619866,113120.0,113110.0,0.57267853]
[1756084937569,0.02816866,113120.0,113110.0,0.41639853]
[1756084937782,0.90747589,113120.0,113110.0,0.82227853]
[1756084938164,0.90944589,113120.0,113110.0,0.82227853]
[1756084938367,0.02816866,113120.0,113110.0,0.82227853]
[1756084938628,0.90747589,113120.0,113110.0,0.82227853]
[1756084938840,0.02619866,113120.0,113110.0,0.82227853]
[1756084939053,0.90747589,113120.0,113110.0,0.82227853]
[1756084939263,0.02619866,113120.0,113110.0,0.82227853]
[1756084939462,0.90747589,113120.0,113110.0,0.82227853]
[1756084939673,0.02619866,113120.0,113110.0,0.82227853]
[1756084939882,0.90747589,113120.0,113110.0,0.82227853]
[1756084940300,0.02619866,113120.0,113110.0,0.82227853]
[1756084940711,0.90747589,113120.0,113110.0,0.82227853]
[1756084940926,0.02619866,113120.0,113110.0,0.82227853]
[1756084941359,0.00034417,113120.0,113110.0,0.82227853]
[1756084941565,0.00034417,113120.0,113110.0,0.82231853]
[1756084942412,0.00034417,113120.0,113110.0,0.82331853]
[1756084942871,0.00034417,113120.0,113110.0,0.82431853]
[1756084946382,0.00034417,113120.0,113110.0,0.66839853]
[1756084946611,0.00034417,113120.0,113110.0,0.82447853]
[1756084946835,0.00034417,113120.0,113110.0,0.66839853]
[1756084947047,0.00034417,113120.0,113110.0,0.82447853]
[1756084948407,0.00034417,113120.0,113110.0,0.82439853]
[1756084949198,0.00034417,113120.0,113110.0,0.82431853]
[1756084951437,0.00034417,113120.0,113110.0,0.82459853]
[1756084952762,0.00034417,113120.0,113110.0,0.84235853]
[1756084953413,0.00034417,113120.0,113110.0,0.84135853]
[1756084953620,0.00034417,113120.0,113110.0,0.84035853]
[1756084953969,0.00034417,113120.0,113110.0,1.74236817]
[1756084954175,0.00034417,113120.0,113110.0,0.84035853]
[1756084954804,0.00034417,113120.0,113110.0,0.84135853]
[1756084955009,0.00034417,113120.0,113110.0,0.84335853]
[1756084955185,0.00034417,113120.0,113110.0,0.84235853]
[1756084955553,0.00034417,113120.0,113110.0,0.84435853]
[1756084957948,0.00034417,113120.0,113110.0,1.74636817]
[1756084958373,0.00034417,113120.0,113110.0,2.08636817]
[1756084958582,0.00034417,113120.0,113110.0,2.16581558]
[1756084958765,0.00034417,113120.0,113110.0,2.19238958]
[1756084959244,0.00034417,113120.0,113110.0,1.21093253]
[1756084959455,0.00034417,113120.0,113110.0,2.19238958]
[1756084960311,0.00034417,113120.0,113110.0,2.29238958]
[1756084960917,0.00034417,113120.0,113110.0,2.29038958]
[1756084961333,0.00034417,113120.0,113110.0,2.27562958]
[1756084961797,0.00034417,113120.0,113110.0,2.27362958]
[1756084962001,0.00034417,113120.0,113110.0,2.27662958]
[1756084966488,0.00034417,113120.0,113110.0,1.21841994]
[1756084966700,0.00034417,113120.0,113110.0,1.37381994]
[1756084966903,0.00034417,113120.0,113110.0,2.27582958]
[1756084967099,0.00034417,113120.0,113110.0,1.21841994]
[1756084967305,0.00232417,113120.0,113110.0,1.37369994]
[1756084967500,0.00232417,113120.0,113110.0,1.21841994]
[1756084967704,0.00232417,113120.0,113110.0,1.37369994]
[1756084967936,0.90433381,113120.0,113110.0,0.94896253]
[1756084968292,0.00232417,113120.0,113110.0,0.92453853]
[1756084968500,0.00232417,113120.0,113110.0,0.92747853]
[1756084969592,0.00034417,113120.0,113110.0,0.92747853]
[1756084971038,0.00232417,113120.0,113110.0,0.92747853]
[1756084971441,0.00232417,113120.0,113110.0,0.94523853]
[1756084971648,0.00034417,113120.0,113110.0,0.94523853]
[1756084971857,0.00232417,113120.0,113110.0,0.94523853]
[1756084972288,0.00232417,113120.0,113110.0,0.94519853]
[1756084972503,0.00034417,113120.0,113110.0,0.94519853]
[1756084973655,0.00034417,113120.0,113110.0,0.94507853]
[1756084974292,0.00034417,113120.0,113110.0,0.78995853]
[1756084974508,0.00034417,113120.0,113110.0,0.94507853]
[1756084974729,0.00034417,113120.0,113110.0,1.84708817]
[1756084974942,0.00034417,113120.0,113110.0,1.87366317]
[1756084975148,0.00034417,113120.0,113110.0,1.95311058]
[1756084975359,0.00034417,113120.0,113110.0,1.39110094]
[1756084975603,0.00034417,113120.0,113110.0,2.29311058]
[1756084976236,0.00034417,113120.0,113110.0,1.38810094]
[1756084976443,0.00034417,113120.0,113110.0,2.29011058]
[1756084976654,0.00034417,113120.0,113110.0,2.29511058]
[1756084977084,0.00034417,113120.0,113110.0,2.21566317]
[1756084977298,0.00034417,113120.0,113110.0,2.32713479]
[1756084977507,0.00034417,113120.0,113110.0,3.32914443]
[1756084977716,0.00034417,113120.0,113110.0,3.32614443]
[1756084977925,0.00034417,113120.0,113110.0,2.42413479]
[1756084978351,0.0006,113130.0,113120.0,0.63425241]
[1756084978565,0.0006,113130.0,113120.0,2.87371131]
[1756084979067,0.0006,113130.0,113120.0,2.89449354]
[1756084979338,0.0006,113130.0,113120.0,3.00596516]
[1756084979555,0.0006,113130.0,113120.0,2.92372516]
[1756084979783,0.0006,113130.0,113120.0,3.27672516]
[1756084980479,0.0006,113130.0,113120.0,3.27372516]
[1756084980770,0.0006,113130.0,113120.0,3.27672516]
[1756084981003,0.0006,113130.0,113120.0,3.27872516]
[1756084981255,0.0006,113130.0,113120.0,1.47470588]
[1756084981472,0.0006,113130.0,113120.0,2.37971552]
[1756084982149,0.0006,113130.0,113120.0,2.37967552]
[1756084982812,0.0006,113130.0,113120.0,3.28168516]
[1756084983274,0.0006,113130.0,113120.0,3.17021354]
[1756084984587,0.0006,113130.0,113120.0,3.43311354]
[1756084984795,1e-08,113130.0,113120.0,3.43311354]
[1756084985004,1e-08,113130.0,113120.0,3.54458516]
[1756084985676,1e-08,113130.0,113120.0,3.54812716]
[1756084986142,1e-08,113130.0,113120.0,3.54312716]
[1756084986597,1e-08,113130.0,113120.0,3.57303754]
[1756084986830,1e-08,113130.0,113120.0,3.66634754]
[1756084987062,1e-08,113130.0,113120.0,3.66738138]
[1756084988881,1e-08,113130.0,113120.0,3.66438138]
[1756084989089,1e-08,113130.0,113120.0,3.66838138]
[1756084996220,1e-08,113130.0,113120.0,3.66238138]
[1756084996426,1e-08,113130.0,113120.0,3.65838138]
[1756084996640,1e-08,113130.0,113120.0,3.66438138]
[1756084996851,1e-08,113130.0,113120.0,3.66338138]
[1756084997276,1e-08,113130.0,113120.0,3.67038138]
[1756084998323,1e-08,113130.0,113120.0,3.51518138]
[1756084998570,1e-08,113130.0,113120.0,3.66986138]
[1756084998839,0.00072928,113160.0,113140.0,0.1]
[1756084999037,0.0002,113170.0,113160.0,0.17674089]
[1756084999269,0.00123406,113170.0,113160.0,0.41826564]
[1756084999483,0.00123406,113170.0,113160.0,1.3377243]
[1756084999698,0.00123406,113170.0,113160.0,1.6142893]
[1756084999915,0.00123406,113170.0,113160.0,1.65624504]
[1756085000358,0.00123406,113170.0,113160.0,1.65824504]
[1756085000805,0.00123406,113170.0,113160.0,0.8582354]
[1756085001020,0.00123406,113170.0,113160.0,1.76327504]
[1756085001268,0.00123406,113170.0,113160.0,0.8811454]
[1756085001486,0.00123406,113170.0,113160.0,1.78103504]
[1756085001721,0.00123406,113170.0,113160.0,1.81614171]
[1756085002173,0.00123406,113170.0,113160.0,0.91213207]
[1756085002417,0.00034406,113170.0,113160.0,1.81726171]
[1756085002639,0.00050406,113170.0,113160.0,1.82026171]
[1756085002885,0.00034406,113170.0,113160.0,1.82026171]
[1756085003608,0.00034406,113170.0,113160.0,2.16026171]
[1756085003832,0.00034406,113170.0,113160.0,2.23917004]
[1756085004299,0.00050406,113170.0,113160.0,1.3371604]
[1756085004531,0.00050406,113170.0,113160.0,2.08241004]
[1756085004751,0.00050406,113170.0,113160.0,2.23701004]
[1756085004986,0.00050406,113170.0,113160.0,1.1773704]
[1756085005251,0.00050406,113170.0,113160.0,2.23394004]
[1756085005458,0.00050406,113170.0,113160.0,1.3319304]
[1756085005678,0.00050406,113170.0,113160.0,2.23394004]
[1756085005891,0.00034406,113170.0,113160.0,2.23906004]
[1756085006109,0.00051406,113170.0,113160.0,2.23906004]
[1756085006374,0.00051406,113170.0,113160.0,2.23507212]
[1756085006790,0.00034406,113170.0,113160.0,2.23507212]
[1756085007881,0.00034406,113170.0,113160.0,2.23207212]
[1756085008507,0.00034406,113170.0,113160.0,2.33507212]
[1756085008710,0.00123406,113170.0,113160.0,2.18051212]
[1756085008919,0.00123406,113170.0,113160.0,2.33487212]
[1756085009087,0.00123406,113170.0,113160.0,2.32973212]
[1756085009308,0.00123406,113170.0,113160.0,2.33187212]
[1756085009475,0.00123406,113170.0,113160.0,2.33487212]
[1756085010030,0.00050406,113170.0,113160.0,2.32975212]
[1756085010414,0.00050406,113170.0,113160.0,2.33273212]
[1756085010611,0.00050406,113170.0,113160.0,2.33987212]
[1756085011308,0.00050406,113170.0,113160.0,2.33979212]
[1756085012400,0.00034406,113170.0,113160.0,2.33979212]
[1756085012807,0.00050406,113170.0,113160.0,1.18136248]
[1756085013195,0.00050406,113170.0,113160.0,2.23459212]
[1756085014184,0.00050406,113170.0,113160.0,2.08039212]
[1756085014393,0.00050406,113170.0,113160.0,1.29747581]
[1756085014880,0.00050406,113170.0,113160.0,2.19940545]
[1756085015765,0.00050406,113170.0,113160.0,2.04528545]
[1756085015993,0.00050406,113170.0,113160.0,2.19932545]
[1756085017487,0.00050406,113170.0,113160.0,1.30029581]
[1756085017689,0.00050406,113170.0,113160.0,2.19932545]
[1756085017906,0.00050406,113170.0,113160.0,2.20230545]
[1756085018466,0.00050406,113170.0,113160.0,2.20226545]
[1756085020269,0.00050406,113170.0,113160.0,1.30025581]
[1756085020477,0.00050406,113170.0,113160.0,1.29727581]
[1756085020715,0.00050406,113170.0,113160.0,2.04528545]
[1756085020952,0.00050406,113170.0,113160.0,2.20226545]
[1756085021157,0.00123406,113170.0,113160.0,0.8823554]
[1756085021646,0.00050406,113170.0,113160.0,0.8823554]
[1756085022913,0.00050406,113170.0,113160.0,1.78948504]
[1756085023095,0.00050406,113170.0,113160.0,0.8874754]
[1756085023517,0.00050406,113170.0,113160.0,1.78948504]
[1756085023963,0.00050406,113170.0,113160.0,0.8874754]
[1756085024597,0.00034406,113170.0,113160.0,1.78948504]
[1756085024808,0.00034406,113170.0,113160.0,2.20839337]
[1756085025024,0.00034406,113170.0,113160.0,2.30839337]
[1756085025249,0.00034406,113170.0,113160.0,3.21040301]
[1756085025454,0.00034406,113170.0,113160.0,3.2429663]
[1756085025881,0.00034406,113170.0,113160.0,3.5058663]
[1756085026090,0.00034406,113170.0,113160.0,2.60385666]
[1756085026299,0.00034406,113170.0,113160.0,1.70184702]
[1756085026539,0.00034406,113170.0,113160.0,2.60385666]
[1756085026968,0.00034406,113170.0,113160.0,1.70184702]
[1756085027176,0.00034406,113170.0,113160.0,2.60385666]
[1756085028431,0.00034406,113170.0,113160.0,1.70184702]
[1756085028637,0.00034406,113170.0,113160.0,2.60385666]
[1756085029510,0.00034406,113170.0,113160.0,1.54784702]
[1756085029723,0.00034406,113170.0,113160.0,2.60389666]
[1756085030608,0.00034406,113170.0,113160.0,1.70188702]
[1756085030811,0.00034406,113170.0,113160.0,2.60389666]
[1756085031230,0.00034406,113170.0,113160.0,2.58613666]
[1756085031870,0.00034406,113170.0,113160.0,1.68412702]
[1756085032075,0.00034406,113170.0,113160.0,3.4881463]
[1756085033241,0.00034406,113170.0,113160.0,1.68412702]
[1756085033448,0.00034406,113170.0,113160.0,2.58613666]
[1756085034062,0.00034406,113170.0,113160.0,1.68412702]
[1756085034273,0.00034406,113170.0,113160.0,3.4881463]
[1756085034615,0.00034406,113170.0,113160.0,3.5881463]
[1756085035221,0.00034406,113170.0,113160.0,1.78412702]
[1756085035439,0.00034406,113170.0,113160.0,2.68625666]
[1756085035676,0.00034406,113170.0,113160.0,3.5882663]
[1756085035833,0.00034406,113170.0,113160.0,2.68625666]
[1756085036234,0.00034406,113170.0,113160.0,2.58625666]
[1756085036434,0.00034406,113170.0,113160.0,2.68625666]
[1756085036877,0.00034406,113170.0,113160.0,2.77956666]
[1756085037105,0.00034406,113170.0,113160.0,2.62540666]
[1756085037453,0.00034406,113170.0,113160.0,2.77952666]
[1756085038268,0.8855637,113200.0,113190.0,0.19414307]
[1756085038470,0.03640361,113210.0,113200.0,0.19412746]
[1756085038679,0.90215365,113210.0,113200.0,0.43505221]
[1756085039750,0.90215365,113210.0,113200.0,0.68505221]
[1756085039957,0.90215365,113210.0,113200.0,0.50837377]
[1756085040162,0.90215365,113210.0,113200.0,0.52837377]
[1756085040418,0.90215365,113210.0,113200.0,0.37433377]
[1756085040673,0.90215365,113210.0,113200.0,0.52829377]
[1756085040986,0.00014401,113210.0,113200.0,0.27829377]
[1756085041191,0.90215365,113210.0,113200.0,0.27829377]
[1756085041399,0.00014401,113210.0,113200.0,0.45497221]
[1756085041808,0.93805929,113210.0,113200.0,0.70497221]
[1756085042190,0.90215365,113210.0,113200.0,0.70497221]
[1756085042345,0.90215365,113210.0,113200.0,0.55101221]
[1756085042543,0.00014401,113210.0,113200.0,0.70505221]
[1756085042749,0.90215365,113210.0,113200.0,0.70505221]
[1756085042964,0.00014401,113210.0,113200.0,0.70505221]
[1756085043378,0.00014401,113210.0,113200.0,0.71915921]
[1756085043579,0.00014401,113210.0,113200.0,0.71911921]
[1756085043879,0.90215365,113210.0,113200.0,0.56511921]
[1756085044083,0.90215365,113210.0,113200.0,0.71907921]
[1756085044486,0.00014401,113210.0,113200.0,0.71907921]
[1756085044749,0.90215365,113210.0,113200.0,0.71907921]
[1756085045310,0.00014401,113210.0,113200.0,0.71907921]
[1756085045567,0.90215365,113210.0,113200.0,0.71907921]
[1756085045766,0.90215365,113210.0,113200.0,0.72230921]
[1756085045967,0.05056976,113220.0,113210.0,0.17666283]
[1756085046172,0.95305933,113220.0,113210.0,0.45946332]
[1756085046398,0.95305933,113220.0,113210.0,0.47691234]
[1756085046744,0.77673125,113220.0,113210.0,0.47691234]
[1756085046962,0.00047993,113220.0,113210.0,0.47691234]
[1756085047167,0.00047993,113220.0,113210.0,0.55330397]
[1756085047590,0.00047993,113220.0,113210.0,1.51777211]
[1756085047795,0.00047993,113220.0,113210.0,1.76777211]
[1756085048436,0.00047993,113220.0,113210.0,0.96576247]
[1756085048660,0.00047993,113220.0,113210.0,1.90760476]
[1756085049401,0.00047993,113220.0,113210.0,2.24760476]
[1756085049615,0.00047993,113220.0,113210.0,1.34759512]
[1756085049815,0.00047993,113220.0,113210.0,2.24760476]
[1756085050238,0.00047993,113220.0,113210.0,2.25060476]
[1756085050439,0.00047993,113220.0,113210.0,1.19463512]
[1756085050667,0.00047993,113220.0,113210.0,1.16072962]
[1756085050878,0.00047993,113220.0,113210.0,1.31468962]
[1756085051085,0.00047993,113220.0,113210.0,2.21469926]
[1756085051298,0.00047993,113220.0,113210.0,2.23240926]
[1756085051508,0.00047993,113220.0,113210.0,2.23540926]
[1756085052004,0.71056557,113240.0,113230.0,0.19408065]
[1756085052213,0.90220964,113250.0,113240.0,0.19406505]
[1756085052415,0.90235353,113250.0,113240.0,0.4353098]
[1756085052617,0.90235353,113250.0,113240.0,0.2809498]
[1756085052824,0.00034389,113250.0,113240.0,0.4353098]
[1756085053030,0.90235353,113250.0,113240.0,0.4553098]
[1756085053247,0.93814084,113250.0,113240.0,0.4553098]
[1756085054096,0.93814084,113250.0,113240.0,0.12433377]
[1756085054304,0.93814084,113250.0,113240.0,0.27897377]
[1756085054512,0.0361312,113250.0,113240.0,0.27897377]
[1756085054717,0.93814084,113250.0,113240.0,0.27897377]
[1756085055756,0.93814084,113250.0,113240.0,0.12433377]
[1756085055986,0.0361312,113250.0,113240.0,0.27889377]
[1756085056201,0.93814084,113250.0,113240.0,0.12433377]
[1756085056402,0.93814084,113250.0,113240.0,0.27989377]
[1756085057449,0.0361312,113250.0,113240.0,0.27989377]
[1756085057872,0.0361312,113250.0,113240.0,0.4617998]
[1756085058486,0.0361312,113250.0,113240.0,0.4627998]
[1756085058930,0.0361312,113250.0,113240.0,0.7127998]
[1756085059142,0.0361312,113250.0,113240.0,0.5582398]
[1756085059355,0.0361312,113250.0,113240.0,0.7126798]
[1756085059885,0.0361312,113250.0,113240.0,0.53400377]
[1756085060133,0.79782223,113250.0,113240.0,0.53069377]
[1756085060767,0.0361312,113250.0,113240.0,0.7073098]
[1756085061643,0.79782223,113250.0,113240.0,0.53069377]
[1756085062282,0.0361312,113250.0,113240.0,0.53069377]
[1756085062481,0.79782223,113250.0,113240.0,0.53069377]
[1756085062695,0.79782223,113250.0,113240.0,0.7073098]
[1756085062910,0.0361312,113250.0,113240.0,0.7125998]
[1756085063130,0.0361312,113250.0,113240.0,0.7105398]
[1756085063754,0.0361312,113250.0,113240.0,0.53069377]
[1756085063988,0.0361312,113250.0,113240.0,0.7073098]
[1756085064186,0.0361312,113250.0,113240.0,0.53069377]
[1756085064400,0.0361312,113250.0,113240.0,0.53392377]
[1756085064633,0.0361312,113250.0,113240.0,0.53069377]
[1756085065472,0.0361312,113250.0,113240.0,0.53381377]
[1756085065679,0.0361312,113250.0,113240.0,0.53590377]
[1756085066114,0.0361312,113250.0,113240.0,0.7125198]
[1756085069737,0.00034389,113250.0,113240.0,1.47421083]
[1756085069971,0.01371617,113280.0,113260.0,0.17657731]
[1756085070207,0.05714003,113280.0,113270.0,0.15436]
[1756085070444,0.78366246,113280.0,113270.0,0.15436]
[1756085070667,0.17656925,113270.0,113260.0,0.03619892]
[1756085070883,0.94651554,113270.0,113260.0,0.15428]
[1756085071388,0.94651554,113270.0,113260.0,0.15424]
[1756085072111,0.00825526,113270.0,113260.0,0.41979959]
[1756085072340,0.00825526,113270.0,113260.0,0.42291959]
[1756085072566,0.00825526,113270.0,113260.0,0.50036743]
[1756085072749,0.00825526,113270.0,113260.0,0.51781645]
[1756085073204,0.03654142,113280.0,113270.0,0.17656925]
[1756085073421,0.04479786,113280.0,113270.0,0.265544]
[1756085073635,0.00825644,113280.0,113270.0,0.268664]
[1756085073847,0.00825644,113280.0,113270.0,0.288664]
[1756085074059,0.00825644,113280.0,113270.0,0.37721465]
[1756085074269,0.04382395,113280.0,113270.0,0.37721465]
[1756085074682,0.00825644,113280.0,113270.0,0.37721465]
[1756085075355,0.0002,113290.0,113280.0,0.17655367]
[1756085075592,0.04435151,113290.0,113280.0,0.47371126]
[1756085075821,0.00860238,113290.0,113280.0,0.47371126]
[1756085076038,0.00860236,113290.0,113280.0,0.47371126]
[1756085076301,0.00860236,113290.0,113280.0,0.29715759]
[1756085076512,0.04495869,113290.0,113280.0,0.29182759]
[1756085076942,0.04495869,113290.0,113280.0,0.29703759]
[1756085077368,0.9831878,113290.0,113280.0,0.05090284]
[1756085077601,0.9831878,113290.0,113280.0,0.154]
[1756085078021,0.17655369,113280.0,113260.0,0.279663]
[1756085078233,0.94650321,113280.0,113270.0,0.24108475]
[1756085078639,0.94650685,113280.0,113270.0,0.24108475]
[1756085079073,0.94650685,113280.0,113270.0,0.20639478]
[1756085079284,0.94650685,113280.0,113270.0,0.20635478]
[1756085079499,0.94650685,113280.0,113270.0,0.20735478]
[1756085079913,0.18481582,113280.0,113270.0,0.20735478]
[1756085080128,0.18481582,113280.0,113270.0,0.15528]
[1756085080129,0.94650685,113280.0,113270.0,0.15528]
[1756085080345,0.94650685,113280.0,113270.0,0.15428]
[1756085082439,0.00826213,113280.0,113270.0,0.15949]
[1756085082889,0.00826213,113280.0,113270.0,0.23059163]
[1756085083746,0.00826213,113280.0,113270.0,0.23159163]
[1756085084492,0.00826213,113280.0,113270.0,0.23259163]
[1756085085196,0.00826332,113280.0,113270.0,0.23259163]
[1756085085653,0.00826332,113280.0,113270.0,0.49604563]
[1756085087290,0.00826332,113280.0,113270.0,0.51349465]
[1756085087524,0.00826332,113280.0,113270.0,1.27518568]
[1756085087766,0.00826332,113280.0,113270.0,1.64289568]
[1756085088007,0.00826332,113280.0,113270.0,1.70588421]
[1756085088535,0.00826332,113280.0,113270.0,2.04488421]
[1756085088776,0.00034387,113290.0,113280.0,0.21171269]
[1756085088998,0.00860356,113290.0,113280.0,0.43126343]
[1756085089239,0.00034387,113290.0,113280.0,1.19295446]
[1756085089481,0.00034387,113290.0,113280.0,0.43126343]
[1756085089715,0.00034387,113290.0,113280.0,1.32061847]
[1756085090434,0.00034387,113290.0,113280.0,1.34807446]
[1756085090866,0.00034387,113290.0,113280.0,1.62461146]
[1756085091069,0.00034387,113290.0,113280.0,1.60015547]
[1756085091283,0.00034387,113290.0,113280.0,1.58312547]
[1756085091761,0.00034387,113290.0,113280.0,1.58612547]
[1756085092001,0.00034387,113290.0,113280.0,0.82431444]
[1756085092235,0.00034387,113290.0,113280.0,1.58600547]
[1756085092467,0.00034387,113290.0,113280.0,1.43032547]
[1756085092708,0.00034387,113290.0,113280.0,0.82427444]
[1756085092944,0.00034387,113290.0,113280.0,1.58596547]
[1756085094585,0.00034387,113290.0,113280.0,0.82423444]
[1756085095233,0.00034387,113290.0,113280.0,0.66863444]
[1756085095452,0.00034387,113290.0,113280.0,0.82419444]
[1756085096175,0.7620349,113290.0,113280.0,0.59840475]
[1756085096395,0.77028695,113290.0,113280.0,0.49840475]
[1756085096857,0.77028695,113290.0,113280.0,0.24840475]
[1756085097092,0.77028695,113290.0,113280.0,0.08988475]
[1756085097321,0.94682503,113290.0,113280.0,0.24540475]
[1756085097567,0.94682503,113290.0,113280.0,0.004]
[1756085097787,0.94682503,113290.0,113280.0,0.15944]
[1756085098021,0.94682503,113290.0,113280.0,0.15644]
[1756085098292,0.94682503,113290.0,113280.0,0.002]
[1756085098732,0.2016518,113290.0,113280.0,0.1574]
[1756085098954,0.97715885,113290.0,113280.0,0.1554]
[1756085099185,0.21546782,113290.0,113280.0,0.1554]
[1756085099409,0.97715885,113290.0,113280.0,0.1554]
[1756085099866,0.97715885,113290.0,113280.0,0.17836116]
[1756085100304,0.97715885,113290.0,113280.0,0.17824116]
[1756085100523,0.17655367,113280.0,113270.0,0.07110163]
[1756085100732,1.70818778,113280.0,113270.0,0.07110163]
[1756085100939,0.20133062,113280.0,113270.0,0.07110163]
[1756085101154,0.20133062,113280.0,113270.0,0.22638163]
[1756085101567,0.96302165,113280.0,113270.0,0.22638163]
[1756085101773,0.96302165,113280.0,113270.0,0.24901979]
[1756085102452,0.94649675,113280.0,113270.0,0.24901979]
[1756085102662,0.18480572,113280.0,113270.0,0.24901979]
[1756085102889,0.94649675,113280.0,113270.0,0.24901979]
[1756085103560,0.00825205,113280.0,113270.0,0.25421979]
[1756085103773,0.94683206,113290.0,113270.0,0.25421979]
[1756085103992,0.77029398,113290.0,113270.0,0.33799454]
[1756085104203,0.94683206,113290.0,113280.0,0.00311]
[1756085104413,0.94683206,113290.0,113280.0,0.0052]
[1756085104634,0.77029398,113290.0,113280.0,0.0052]
[1756085104841,0.77029398,113290.0,113280.0,0.09208475]
[1756085104842,0.00860295,113290.0,113280.0,0.09208475]
[1756085105056,0.00034387,113290.0,113280.0,0.14034943]
[1756085105667,0.00034387,113290.0,113280.0,0.3169031]
[1756085106300,0.00034387,113290.0,113280.0,0.33435212]
[1756085106510,0.00034387,113290.0,113280.0,0.33535212]
[1756085106723,0.00034387,113290.0,113280.0,1.09704315]
[1756085107673,0.00034387,113290.0,113280.0,1.19804315]
[1756085107899,0.00034387,113290.0,113280.0,1.47449914]
[1756085108367,0.00034387,113290.0,113280.0,1.47649914]
[1756085108582,0.00034387,113290.0,113280.0,1.47449914]
[1756085109076,0.00034387,113290.0,113280.0,1.44904315]
[1756085109534,0.00034387,113290.0,113280.0,1.4788129]
[1756085109829,0.00034387,113290.0,113280.0,2.58050393]
[1756085110026,0.00034387,113290.0,113280.0,2.65951029]
[1756085110263,0.00034387,113290.0,113280.0,1.17261856]
[1756085110477,0.00034387,113290.0,113280.0,2.69600062]
[1756085110912,0.00034387,113290.0,113280.0,1.17261856]
[1756085111148,0.00034387,113290.0,113280.0,1.10935848]
[1756085111355,0.00034387,113290.0,113280.0,2.02780951]
[1756085111820,0.00034387,113290.0,113280.0,1.10935848]
[1756085112053,0.00034387,113290.0,113280.0,1.03035212]
[1756085112321,0.00034387,113290.0,113280.0,1.0129031]
[1756085112537,0.00034387,113290.0,113280.0,1.93127413]
[1756085112771,0.00034387,113290.0,113280.0,1.94872315]
[1756085113257,0.0005,113320.0,113310.0,0.17650692]
[1756085113487,0.0005,113320.0,113310.0,0.46216885]
[1756085113968,0.0005,113320.0,113310.0,0.46527885]
[1756085114867,0.0005,113320.0,113310.0,0.71527885]
[1756085115287,0.0005,113320.0,113310.0,0.53977193]
[1756085115505,0.00106,113320.0,113310.0,0.38317193]
[1756085115708,0.00106,113320.0,113310.0,0.53981193]
[1756085115914,0.00106,113320.0,113310.0,0.37797193]
[1756085116146,0.00106,113320.0,113310.0,0.53461193]
[1756085116355,0.00106,113320.0,113310.0,0.53561193]
[1756085117935,1.06875857,113320.0,113310.0,0.36152291]
[1756085118152,1.07735206,113320.0,113310.0,0.49544475]
[1756085118793,1.07700206,113320.0,113310.0,0.24544475]
[1756085118979,0.90051071,113320.0,113310.0,0.24444475]
[1756085119197,0.90051071,113320.0,113310.0,0.24344475]
[1756085119198,0.00930349,113320.0,113310.0,0.24344475]
[1756085120037,0.18579484,113320.0,113310.0,0.24344475]
[1756085120241,0.18579484,113320.0,113310.0,0.28575247]
[1756085120789,0.00930349,113320.0,113310.0,0.28575247]
[1756085121386,0.0005,113320.0,113310.0,0.29095247]
[1756085121611,0.0005,113320.0,113310.0,0.46745939]
[1756085122502,0.0005,113320.0,113310.0,0.48490841]
[1756085122713,0.0005,113320.0,113310.0,1.72498701]
[1756085122921,0.0005,113320.0,113310.0,0.93377979]
[1756085123132,0.0005,113320.0,113310.0,1.82498701]
[1756085123855,0.0005,113320.0,113310.0,1.82598701]
[1756085124283,0.0005,113320.0,113310.0,1.82498701]
[1756085124519,0.0005,113320.0,113310.0,0.93677979]
[1756085124762,0.0005,113320.0,113310.0,1.80121726]
[1756085124973,0.0005,113320.0,113310.0,1.80021726]
[1756085125176,0.0005,113320.0,113310.0,1.82674526]
[1756085125386,0.0005,113320.0,113310.0,0.93853804]
[1756085125588,0.0005,113320.0,113310.0,0.93813804]
[1756085126983,0.0005,113320.0,113310.0,0.71087641]
[1756085127420,0.0005,113320.0,113310.0,0.86695641]
[1756085127628,0.00106,113320.0,113310.0,0.86691641]
[1756085127842,0.00106,113320.0,113310.0,0.56388149]
[1756085128059,0.00106,113320.0,113310.0,0.55868149]
[1756085128271,0.00106,113320.0,113310.0,0.38519247]
[1756085128482,0.00106,113320.0,113310.0,0.54119247]
[1756085128714,0.00106,113320.0,113310.0,0.71469939]
[1756085128926,0.00106,113320.0,113310.0,0.71971939]
[1756085129141,0.00106,113320.0,113310.0,0.72173939]
[1756085129348,0.0005,113320.0,113310.0,0.71873939]
[1756085129560,0.0005,113320.0,113310.0,0.56473939]
[1756085129771,0.0005,113320.0,113310.0,0.54415247]
[1756085130205,0.0005,113320.0,113310.0,0.72065939]
[1756085130426,0.0005,113320.0,113310.0,0.83810841]
[1756085131035,0.0005,113320.0,113310.0,0.90921004]
[1756085131247,0.0005,113320.0,113310.0,0.90521004]
[1756085131453,0.0005,113320.0,113310.0,0.92292004]
[1756085131665,0.0005,113320.0,113310.0,0.95245004]
[1756085131881,0.0005,113320.0,113310.0,1.84365726]
[1756085132768,0.0005,113320.0,113310.0,1.84665726]
[1756085132982,0.0005,113320.0,113310.0,1.84365726]
[1756085133177,0.0005,113320.0,113310.0,1.84065726]
[1756085133417,0.0005,113320.0,113310.0,1.84365726]
[1756085134336,0.0005,113320.0,113310.0,1.84865726]
[1756085134781,0.0005,113320.0,113310.0,0.95745004]
[1756085134992,0.0005,113320.0,113310.0,1.84865726]
[1756085135836,0.0005,113320.0,113310.0,2.22388343]
[1756085136500,0.0005,113320.0,113310.0,2.30288979]
[1756085136720,0.0005,113320.0,113310.0,2.26766362]
[1756085136942,0.0005,113320.0,113310.0,2.26466362]
[1756085137374,0.0005,113320.0,113310.0,2.26866362]
[1756085137582,0.0005,113320.0,113310.0,2.18965726]
[1756085137825,0.0005,113320.0,113310.0,2.22643597]
[1756085138046,0.0005,113320.0,113310.0,2.22143597]
[1756085138255,0.0005,113320.0,113310.0,2.22743597]
[1756085138465,0.0005,113320.0,113310.0,2.30644233]
[1756085138676,0.0005,113320.0,113310.0,2.22743597]
[1756085138888,0.0005,113320.0,113310.0,1.07242841]
[1756085139075,0.0005,113320.0,113310.0,1.22770841]
[1756085139742,0.0005,113320.0,113310.0,1.05497939]
[1756085139951,0.0005,113320.0,113310.0,1.21025939]
[1756085140596,0.0005,113320.0,113310.0,1.22770841]
[1756085140809,0.00014878,113320.0,113310.0,1.22770841]
[1756085141229,0.00014878,113320.0,113310.0,1.07242841]
[1756085141489,0.00014878,113320.0,113310.0,1.22770841]
[1756085142354,0.00014878,113320.0,113310.0,1.07242841]
[1756085142569,0.00014878,113320.0,113310.0,1.22754841]
[1756085143995,0.00014878,113320.0,113310.0,1.21754841]
[1756085144206,0.00014878,113320.0,113310.0,1.06242841]
[1756085144408,0.00014878,113320.0,113310.0,1.22250841]
[1756085145592,0.00070878,113320.0,113310.0,1.07042841]